[Event "Titled Tuesday Blitz February 15 Early 2022"]
[White "Andreikin, Dmitry"]
[Black "Cunjalo, Faris"]
[WhiteFideId "4158814"]
[BlackFideId "14410710"]
[WhiteElo "2736"]
[BlackElo "2263"]
[Result "1/2-1/2"]
[Round "11"]
[TimeControl "180+1"]
[Date "2022.02.15"]
[WhiteClock "0:00:05"]
[BlackClock "0:00:02"]

1. e4 {[%clk 0:03:00]}  c6 {[%clk 0:02:59]} 2. Nf3 {[%clk 0:02:59]}  d5 {[%clk 0:02:59]} 3. exd5 {[%clk 0:02:59]}  cxd5 {[%clk 0:02:59]} 4. Ne5 {[%clk 0:03:00]}  Nc6 {[%clk 0:02:51]} 5. d4 {[%clk 0:03:00]}  a6 {[%clk 0:02:45]} 6. c4 {[%clk 0:02:59]}  Nf6 {[%clk 0:02:40]} 7. Nc3 {[%clk 0:02:59]}  e6 {[%clk 0:02:28]} 8. Be3 {[%clk 0:02:55]}  Bb4 {[%clk 0:02:22]} 9. Qb3 {[%clk 0:02:51]}  Qa5 {[%clk 0:02:15]} 10. Be2 {[%clk 0:02:48]}  Ne4 {[%clk 0:01:41]} 11. O-O {[%clk 0:02:44]}  Nxe5 {[%clk 0:01:36]} 12. dxe5 {[%clk 0:02:17]}  dxc4 {[%clk 0:01:20]} 13. Qxc4 {[%clk 0:02:02]}  Nxc3 {[%clk 0:01:20]} 14. bxc3 {[%clk 0:01:58]}  Be7 {[%clk 0:01:20]} 15. Qg4 {[%clk 0:01:48]}  O-O {[%clk 0:01:15]} 16. Bd4 {[%clk 0:01:36]}  Bd7 {[%clk 0:01:09]} 17. Rae1 {[%clk 0:01:31]}  Bb5 {[%clk 0:00:25]} 18. f4 {[%clk 0:01:22]}  g6 {[%clk 0:00:23]} 19. f5 {[%clk 0:00:33]}  exf5 {[%clk 0:00:22]} 20. Rxf5 {[%clk 0:00:34]}  Bd7 {[%clk 0:00:21]} 21. e6 {[%clk 0:00:32]}  Qxf5 {[%clk 0:00:21]} 22. exd7 {[%clk 0:00:33]}  Bc5 {[%clk 0:00:17]} 23. Qxf5 {[%clk 0:00:26]}  Bxd4+ {[%clk 0:00:17]} 24. cxd4 {[%clk 0:00:26]}  gxf5 {[%clk 0:00:18]} 25. Bd3 {[%clk 0:00:25]}  Rfd8 {[%clk 0:00:12]} 26. Bxf5 {[%clk 0:00:25]}  b5 {[%clk 0:00:10]} 27. d5 {[%clk 0:00:19]}  a5 {[%clk 0:00:07]} 28. d6 {[%clk 0:00:14]}  Rab8 {[%clk 0:00:06]} 29. Rc1 {[%clk 0:00:13]}  Kg7 {[%clk 0:00:04]} 30. g4 {[%clk 0:00:11]}  Kf6 {[%clk 0:00:03]} 31. Rc5 {[%clk 0:00:10]}  h6 {[%clk 0:00:02]} 32. Kf2 {[%clk 0:00:10]}  a4 {[%clk 0:00:02]} 33. Ke3 {[%clk 0:00:09]}  b4 {[%clk 0:00:02]} 34. Kd2 {[%clk 0:00:09]}  b3 {[%clk 0:00:02]} 35. axb3 {[%clk 0:00:10]}  Rxb3 {[%clk 0:00:03]} 36. Rc8 {[%clk 0:00:09]}  Rb8 {[%clk 0:00:03]} 37. Rc3 {[%clk 0:00:05]}  a3 {[%clk 0:00:04]} 38. Rxa3 {[%clk 0:00:05]}  Rb2+ {[%clk 0:00:04]} 39. Ke3 {[%clk 0:00:03]}  Rxh2 {[%clk 0:00:05]} 40. Rc3 {[%clk 0:00:03]}  Rh3+ {[%clk 0:00:05]} 41. Kd4 {[%clk 0:00:03]}  Rxc3 {[%clk 0:00:06]} 42. Kxc3 {[%clk 0:00:04]}  Ke5 {[%clk 0:00:04]} 43. Kc4 {[%clk 0:00:04]}  Kxd6 {[%clk 0:00:05]} 44. Kd4 {[%clk 0:00:05]}  f6 {[%clk 0:00:02]} 45. Ke4 {[%clk 0:00:05]}  Rb8 {[%clk 0:00:03]} 46. Kf4 {[%clk 0:00:05]}  Rb4+ {[%clk 0:00:02]} 47. Kg3 {[%clk 0:00:05]}  Ke7 {[%clk 0:00:03]} 48. Kh4 {[%clk 0:00:05]}  Rd4 {[%clk 0:00:02]} 49. Kh5 {[%clk 0:00:06]}  Kf7 {[%clk 0:00:02]} 50. Kxh6 {[%clk 0:00:05]}  Rd2 {[%clk 0:00:03]} 51. Bg6+ {[%clk 0:00:03]}  Kf8 {[%clk 0:00:04]} 52. Bf5 {[%clk 0:00:04]}  Kf7 {[%clk 0:00:03]} 53. Bg6+ {[%clk 0:00:04]}  Ke7 {[%clk 0:00:03]} 54. Bf5 {[%clk 0:00:05]}  Kf7 {[%clk 0:00:02]} 1/2-1/2


[Site "https://www.chess.com"]

[Event "Titled Tuesday Blitz February 15 Early 2022"]
[White "Annaberdiyev, Babageldi"]
[Black "Le, Tuan Minh"]
[WhiteFideId "14000385"]
[BlackFideId "12401153"]
[WhiteElo "2332"]
[BlackElo "2450"]
[Result "0-1"]
[Round "11"]
[TimeControl "180+1"]
[Date "2022.02.15"]
[WhiteClock "0:00:08"]
[BlackClock "0:00:07"]

1. e4 {[%clk 0:03:00]}  c5 {[%clk 0:03:00]} 2. Nf3 {[%clk 0:02:59]}  Nf6 {[%clk 0:02:59]} 3. d3 {[%clk 0:02:59]}  Nc6 {[%clk 0:02:59]} 4. Nbd2 {[%clk 0:02:57]}  g6 {[%clk 0:02:59]} 5. g3 {[%clk 0:02:58]}  Bg7 {[%clk 0:02:57]} 6. Bg2 {[%clk 0:02:59]}  O-O {[%clk 0:02:58]} 7. O-O {[%clk 0:02:57]}  d6 {[%clk 0:02:56]} 8. Re1 {[%clk 0:02:56]}  Nd7 {[%clk 0:02:55]} 9. Nf1 {[%clk 0:02:52]}  b5 {[%clk 0:02:55]} 10. h4 {[%clk 0:02:50]}  h5 {[%clk 0:02:49]} 11. c3 {[%clk 0:02:46]}  b4 {[%clk 0:02:49]} 12. d4 {[%clk 0:02:46]}  bxc3 {[%clk 0:02:49]} 13. bxc3 {[%clk 0:02:45]}  Qa5 {[%clk 0:02:48]} 14. e5 {[%clk 0:02:41]}  cxd4 {[%clk 0:02:12]} 15. Nxd4 {[%clk 0:02:35]}  Nxd4 {[%clk 0:02:07]} 16. cxd4 {[%clk 0:02:36]}  Rb8 {[%clk 0:02:04]} 17. exd6 {[%clk 0:02:36]}  exd6 {[%clk 0:02:04]} 18. Bf4 {[%clk 0:02:37]}  Rb6 {[%clk 0:02:02]} 19. Ne3 {[%clk 0:02:35]}  Rb4 {[%clk 0:01:44]} 20. Nc2 {[%clk 0:02:34]}  Rb6 {[%clk 0:01:43]} 21. Ne3 {[%clk 0:02:33]}  Rb4 {[%clk 0:00:49]} 22. Nc2 {[%clk 0:02:32]}  Ra4 {[%clk 0:00:49]} 23. Bxd6 {[%clk 0:02:28]}  Rd8 {[%clk 0:00:49]} 24. Be7 {[%clk 0:02:24]}  Re8 {[%clk 0:00:49]} 25. a3 {[%clk 0:02:13]}  Bf8 {[%clk 0:00:32]} 26. Bxf8 {[%clk 0:01:48]}  Rxf8 {[%clk 0:00:33]} 27. d5 {[%clk 0:01:31]}  Nf6 {[%clk 0:00:31]} 28. d6 {[%clk 0:01:28]}  Bd7 {[%clk 0:00:29]} 29. Nb4 {[%clk 0:01:25]}  Rxa3 {[%clk 0:00:27]} 30. Rxa3 {[%clk 0:01:19]}  Qxa3 {[%clk 0:00:28]} 31. Qd4 {[%clk 0:01:19]}  Ng4 {[%clk 0:00:15]} 32. Bf3 {[%clk 0:01:14]}  Qxf3 {[%clk 0:00:12]} 33. Qf4 {[%clk 0:01:04]}  Qxf4 {[%clk 0:00:12]} 34. gxf4 {[%clk 0:01:05]}  Be6 {[%clk 0:00:12]} 35. Nc6 {[%clk 0:01:01]}  Nf6 {[%clk 0:00:12]} 36. Ra1 {[%clk 0:00:54]}  Bd7 {[%clk 0:00:09]} 37. Ne7+ {[%clk 0:00:52]}  Kg7 {[%clk 0:00:09]} 38. Rxa7 {[%clk 0:00:53]}  Rb8 {[%clk 0:00:09]} 39. f5 {[%clk 0:00:49]}  gxf5 {[%clk 0:00:08]} 40. f3 {[%clk 0:00:47]}  Rb6 {[%clk 0:00:08]} 41. Ra5 {[%clk 0:00:43]}  Rxd6 {[%clk 0:00:08]} 42. Nxf5+ {[%clk 0:00:39]}  Bxf5 {[%clk 0:00:08]} 43. Rxf5 {[%clk 0:00:40]}  Rd4 {[%clk 0:00:07]} 44. Rg5+ {[%clk 0:00:26]}  Kf8 {[%clk 0:00:08]} 45. Rf5 {[%clk 0:00:23]}  Ke7 {[%clk 0:00:08]} 46. Re5+ {[%clk 0:00:23]}  Kd6 {[%clk 0:00:08]} 47. Rf5 {[%clk 0:00:17]}  Ke6 {[%clk 0:00:09]} 48. Ra5 {[%clk 0:00:17]}  Rxh4 {[%clk 0:00:09]} 49. Kg2 {[%clk 0:00:18]}  Nd5 {[%clk 0:00:08]} 50. Kg3 {[%clk 0:00:18]}  Rd4 {[%clk 0:00:07]} 51. Ra6+ {[%clk 0:00:19]}  Kf5 {[%clk 0:00:08]} 52. Ra7 {[%clk 0:00:20]}  h4+ {[%clk 0:00:08]} 53. Kh3 {[%clk 0:00:20]}  f6 {[%clk 0:00:08]} 54. Ra5 {[%clk 0:00:19]}  Kf4 {[%clk 0:00:06]} 55. Kxh4 {[%clk 0:00:17]}  f5 {[%clk 0:00:06]} 56. Kh5 {[%clk 0:00:18]}  Ne3 {[%clk 0:00:06]} 57. Kh4 {[%clk 0:00:10]}  Kxf3+ {[%clk 0:00:07]} 58. Kh3 {[%clk 0:00:11]}  f4 {[%clk 0:00:07]} 59. Ra8 {[%clk 0:00:09]}  Rd7 {[%clk 0:00:06]} 60. Rh8 {[%clk 0:00:09]}  Rd1 {[%clk 0:00:06]} 61. Kh2 {[%clk 0:00:07]}  Ng4+ {[%clk 0:00:06]} 62. Kh3 {[%clk 0:00:08]}  Rh1# {[%clk 0:00:07]} 0-1


[Site "https://www.chess.com"]

[Event "Titled Tuesday Blitz February 15 Early 2022"]
[White "Arngrimsson, Dagur"]
[Black "Goltseva, Ekaterina"]
[WhiteFideId "2301288"]
[BlackFideId "24173770"]
[WhiteElo "2286"]
[BlackElo "2140"]
[Result "1-0"]
[Round "11"]
[TimeControl "180+1"]
[Date "2022.02.15"]
[WhiteClock "0:00:32"]
[BlackClock "0:00:07"]

1. e4 {[%clk 0:03:00]}  e5 {[%clk 0:02:59]} 2. Nf3 {[%clk 0:02:59]}  Nc6 {[%clk 0:03:00]} 3. d4 {[%clk 0:02:55]}  exd4 {[%clk 0:02:58]} 4. Bc4 {[%clk 0:02:54]}  Nf6 {[%clk 0:02:58]} 5. O-O {[%clk 0:02:53]}  Nxe4 {[%clk 0:02:57]} 6. Re1 {[%clk 0:02:53]}  d5 {[%clk 0:02:57]} 7. Bxd5 {[%clk 0:02:52]}  Qxd5 {[%clk 0:02:58]} 8. Nc3 {[%clk 0:02:52]}  Qa5 {[%clk 0:02:57]} 9. Nxe4 {[%clk 0:02:52]}  Be6 {[%clk 0:02:58]} 10. Neg5 {[%clk 0:02:35]}  O-O-O {[%clk 0:02:55]} 11. Bd2 {[%clk 0:02:31]}  Qb5 {[%clk 0:02:48]} 12. a4 {[%clk 0:02:29]}  Qd5 {[%clk 0:02:48]} 13. Nxe6 {[%clk 0:02:26]}  fxe6 {[%clk 0:02:48]} 14. Qe2 {[%clk 0:02:26]}  Bb4 {[%clk 0:02:29]} 15. c3 {[%clk 0:02:19]}  dxc3 {[%clk 0:02:11]} 16. bxc3 {[%clk 0:02:19]}  Bc5 {[%clk 0:02:12]} 17. Rab1 {[%clk 0:02:15]}  e5 {[%clk 0:02:06]} 18. Rb5 {[%clk 0:02:08]}  a6 {[%clk 0:02:02]} 19. Rb2 {[%clk 0:01:57]}  Rhe8 {[%clk 0:02:01]} 20. Reb1 {[%clk 0:01:56]}  Bb6 {[%clk 0:01:38]} 21. Be3 {[%clk 0:01:42]}  e4 {[%clk 0:01:28]} 22. Nd2 {[%clk 0:01:30]}  Bxe3 {[%clk 0:01:19]} 23. Qxe3 {[%clk 0:01:29]}  b6 {[%clk 0:01:13]} 24. h3 {[%clk 0:01:18]}  Qd3 {[%clk 0:01:05]} 25. Qf4 {[%clk 0:01:16]}  Qxc3 {[%clk 0:00:52]} 26. Nxe4 {[%clk 0:01:15]}  Qe5 {[%clk 0:00:47]} 27. Qg4+ {[%clk 0:01:11]}  Qe6 {[%clk 0:00:47]} 28. f3 {[%clk 0:00:57]}  Qxg4 {[%clk 0:00:44]} 29. hxg4 {[%clk 0:00:58]}  Rd4 {[%clk 0:00:43]} 30. Rc2 {[%clk 0:00:57]}  Na5 {[%clk 0:00:39]} 31. Rxb6 {[%clk 0:00:56]}  Rxa4 {[%clk 0:00:34]} 32. Rxa6 {[%clk 0:00:56]}  Re5 {[%clk 0:00:26]} 33. Ra7 {[%clk 0:00:55]}  Rc4 {[%clk 0:00:26]} 34. Ra2 {[%clk 0:00:49]}  Nc6 {[%clk 0:00:24]} 35. Ra8+ {[%clk 0:00:50]}  Kb7 {[%clk 0:00:23]} 36. Rg8 {[%clk 0:00:48]}  Re7 {[%clk 0:00:19]} 37. Rb2+ {[%clk 0:00:45]}  Rb4 {[%clk 0:00:20]} 38. Rc2 {[%clk 0:00:44]}  Nd4 {[%clk 0:00:18]} 39. Rd2 {[%clk 0:00:44]}  Ne6 {[%clk 0:00:16]} 40. Re2 {[%clk 0:00:41]}  Rb1+ {[%clk 0:00:14]} 41. Kh2 {[%clk 0:00:41]}  Rc1 {[%clk 0:00:14]} 42. g5 {[%clk 0:00:40]}  Nf4 {[%clk 0:00:14]} 43. Nd6+ {[%clk 0:00:40]}  Kc6 {[%clk 0:00:09]} 44. Rxe7 {[%clk 0:00:41]}  Kxd6 {[%clk 0:00:09]} 45. Rexg7 {[%clk 0:00:39]}  Rc2 {[%clk 0:00:09]} 46. Rd8+ {[%clk 0:00:37]}  Kc6 {[%clk 0:00:09]} 47. Rd4 {[%clk 0:00:35]}  Nxg2 {[%clk 0:00:07]} 48. Kg3 {[%clk 0:00:36]}  Ne1 {[%clk 0:00:06]} 49. Rxh7 {[%clk 0:00:34]}  Rg2+ {[%clk 0:00:07]} 50. Kf4 {[%clk 0:00:34]}  Rf2 {[%clk 0:00:07]} 51. Rh3 {[%clk 0:00:33]}  Ng2+ {[%clk 0:00:07]} 52. Kg3 {[%clk 0:00:33]}  Re2 {[%clk 0:00:08]} 53. Rh2 {[%clk 0:00:33]}  Nf4 {[%clk 0:00:06]} 54. Rxf4 {[%clk 0:00:33]}  Re3 {[%clk 0:00:07]} 55. Rc4+ {[%clk 0:00:32]} 1-0


[Site "https://www.chess.com"]

[Event "Titled Tuesday Blitz February 15 Early 2022"]
[White "Balint, Vilmos"]
[Black "Nurmanova, Alua"]
[WhiteFideId "718050"]
[BlackFideId "13729390"]
[WhiteElo "2059"]
[BlackElo "1851"]
[Result "0-1"]
[Round "11"]
[TimeControl "180+1"]
[Date "2022.02.15"]
[WhiteClock "0:01:07"]
[BlackClock "0:00:31"]

1. e4 {[%clk 0:03:00]}  c5 {[%clk 0:02:59]} 2. Nf3 {[%clk 0:02:59]}  d6 {[%clk 0:02:59]} 3. Bb5+ {[%clk 0:02:56]}  Bd7 {[%clk 0:02:57]} 4. Qe2 {[%clk 0:02:54]}  Nf6 {[%clk 0:02:55]} 5. Nc3 {[%clk 0:02:54]}  Nc6 {[%clk 0:02:53]} 6. Bxc6 {[%clk 0:02:54]}  Bxc6 {[%clk 0:02:53]} 7. d3 {[%clk 0:02:54]}  e6 {[%clk 0:02:52]} 8. O-O {[%clk 0:02:54]}  Be7 {[%clk 0:02:53]} 9. Bf4 {[%clk 0:02:53]}  O-O {[%clk 0:02:52]} 10. h3 {[%clk 0:02:54]}  Nd7 {[%clk 0:02:48]} 11. Bh2 {[%clk 0:02:47]}  b5 {[%clk 0:02:46]} 12. a3 {[%clk 0:02:46]}  a5 {[%clk 0:02:45]} 13. a4 {[%clk 0:02:45]}  bxa4 {[%clk 0:02:35]} 14. Nxa4 {[%clk 0:02:44]}  Nb6 {[%clk 0:02:10]} 15. Nc3 {[%clk 0:02:38]}  a4 {[%clk 0:02:08]} 16. d4 {[%clk 0:02:36]}  cxd4 {[%clk 0:01:58]} 17. Nxd4 {[%clk 0:02:36]}  Bb7 {[%clk 0:01:56]} 18. Rfd1 {[%clk 0:02:36]}  Ba6 {[%clk 0:01:37]} 19. Qh5 {[%clk 0:02:21]}  Qd7 {[%clk 0:01:33]} 20. Ndb5 {[%clk 0:02:07]}  g6 {[%clk 0:01:29]} 21. Qe2 {[%clk 0:02:04]}  Rfc8 {[%clk 0:01:15]} 22. Bf4 {[%clk 0:01:34]}  Rxc3 {[%clk 0:01:05]} 23. bxc3 {[%clk 0:01:34]}  Bxb5 {[%clk 0:01:03]} 24. Qd2 {[%clk 0:01:35]}  Nc4 {[%clk 0:01:02]} 25. Qc1 {[%clk 0:01:31]}  a3 {[%clk 0:00:57]} 26. Bh6 {[%clk 0:01:31]}  Bf6 {[%clk 0:00:54]} 27. Rd3 {[%clk 0:01:23]}  a2 {[%clk 0:00:42]} 28. Qf4 {[%clk 0:01:20]}  Be5 {[%clk 0:00:41]} 29. Qh4 {[%clk 0:01:19]}  Na3 {[%clk 0:00:35]} 30. Rxa2 {[%clk 0:01:14]}  Bxd3 {[%clk 0:00:35]} 31. cxd3 {[%clk 0:01:14]}  Qb5 {[%clk 0:00:34]} 32. Rxa3 {[%clk 0:01:07]}  Qb1+ {[%clk 0:00:31]} 0-1


[Site "https://www.chess.com"]

[Event "Titled Tuesday Blitz February 15 Early 2022"]
[White "Bettalli, Francesco"]
[Black "Nogerbek, Kazybek"]
[WhiteFideId "2816453"]
[BlackFideId "13710427"]
[WhiteElo "2216"]
[BlackElo "2478"]
[Result "1/2-1/2"]
[Round "11"]
[TimeControl "180+1"]
[Date "2022.02.15"]
[WhiteClock "0:00:32"]
[BlackClock "0:00:51"]

1. d4 {[%clk 0:03:00]}  f5 {[%clk 0:02:53]} 2. g4 {[%clk 0:03:00]}  fxg4 {[%clk 0:02:53]} 3. e4 {[%clk 0:03:00]}  d5 {[%clk 0:02:52]} 4. e5 {[%clk 0:03:00]}  Bf5 {[%clk 0:02:51]} 5. h3 {[%clk 0:02:59]}  gxh3 {[%clk 0:02:49]} 6. Bxh3 {[%clk 0:03:00]}  Qd7 {[%clk 0:02:50]} 7. Qf3 {[%clk 0:02:58]}  g6 {[%clk 0:02:46]} 8. Bxf5 {[%clk 0:02:56]}  Qxf5 {[%clk 0:02:47]} 9. Qxf5 {[%clk 0:02:56]}  gxf5 {[%clk 0:02:48]} 10. Nh3 {[%clk 0:02:57]}  Nc6 {[%clk 0:02:48]} 11. c3 {[%clk 0:02:56]}  O-O-O {[%clk 0:02:48]} 12. Ng5 {[%clk 0:02:56]}  Bh6 {[%clk 0:02:47]} 13. Nf7 {[%clk 0:02:48]}  Bxc1 {[%clk 0:02:46]} 14. Nxh8 {[%clk 0:02:49]}  Bxb2 {[%clk 0:02:46]} 15. Kd2 {[%clk 0:02:40]}  Bxa1 {[%clk 0:02:44]} 16. Nf7 {[%clk 0:02:40]}  Rf8 {[%clk 0:02:35]} 17. Rxh7 {[%clk 0:02:40]}  f4 {[%clk 0:02:14]} 18. Kc2 {[%clk 0:02:29]}  b5 {[%clk 0:02:12]} 19. a3 {[%clk 0:02:28]}  a5 {[%clk 0:02:12]} 20. Ng5 {[%clk 0:02:18]}  b4 {[%clk 0:02:11]} 21. Ne6 {[%clk 0:02:19]}  Re8 {[%clk 0:02:10]} 22. Ng7 {[%clk 0:02:17]}  Rd8 {[%clk 0:02:00]} 23. Ne6 {[%clk 0:02:17]}  bxc3 {[%clk 0:02:00]} 24. Nxc3 {[%clk 0:02:11]}  Re8 {[%clk 0:01:55]} 25. Nb5 {[%clk 0:02:03]}  Kd7 {[%clk 0:01:45]} 26. Nc5+ {[%clk 0:01:46]}  Kc8 {[%clk 0:01:44]} 27. Ne6 {[%clk 0:01:46]}  Nxe5 {[%clk 0:01:45]} 28. Nbxc7 {[%clk 0:01:35]}  Rd8 {[%clk 0:01:41]} 29. Nxd8 {[%clk 0:01:33]}  Kxd8 {[%clk 0:01:41]} 30. dxe5 {[%clk 0:01:29]}  Kxc7 {[%clk 0:01:41]} 31. Rh8 {[%clk 0:01:28]}  Bxe5 {[%clk 0:01:41]} 32. Rxg8 {[%clk 0:01:28]}  Bd6 {[%clk 0:01:39]} 33. a4 {[%clk 0:01:27]}  Kd7 {[%clk 0:01:33]} 34. Ra8 {[%clk 0:01:25]}  Bb4 {[%clk 0:01:32]} 35. Ra6 {[%clk 0:01:26]}  e6 {[%clk 0:01:30]} 36. Kd3 {[%clk 0:01:26]}  Ke7 {[%clk 0:01:30]} 37. Ra8 {[%clk 0:01:23]}  Kd6 {[%clk 0:01:30]} 38. Rh8 {[%clk 0:01:21]}  e5 {[%clk 0:01:22]} 39. Rh6+ {[%clk 0:01:21]}  Kc5 {[%clk 0:01:22]} 40. f3 {[%clk 0:01:21]}  Be1 {[%clk 0:01:21]} 41. Re6 {[%clk 0:01:20]}  e4+ {[%clk 0:01:11]} 42. fxe4 {[%clk 0:01:21]}  dxe4+ {[%clk 0:01:12]} 43. Rxe4 {[%clk 0:01:16]}  Bg3 {[%clk 0:01:10]} 44. Rc4+ {[%clk 0:01:09]}  Kd5 {[%clk 0:01:09]} 45. Rc8 {[%clk 0:01:09]}  f3 {[%clk 0:01:06]} 46. Rf8 {[%clk 0:00:52]}  f2 {[%clk 0:01:04]} 47. Ke2 {[%clk 0:00:51]}  Kc4 {[%clk 0:01:02]} 48. Rg8 {[%clk 0:00:48]}  Bd6 {[%clk 0:00:55]} 49. Kxf2 {[%clk 0:00:45]}  Kb3 {[%clk 0:00:55]} 50. Ke2 {[%clk 0:00:39]}  Kxa4 {[%clk 0:00:53]} 51. Kd3 {[%clk 0:00:34]}  Kb3 {[%clk 0:00:52]} 52. Rd8 {[%clk 0:00:33]}  Bb4 {[%clk 0:00:53]} 53. Ra8 {[%clk 0:00:31]}  a4 {[%clk 0:00:53]} 54. Rxa4 {[%clk 0:00:32]}  Kxa4 {[%clk 0:00:51]} 1/2-1/2


[Site "https://www.chess.com"]

[Event "Titled Tuesday Blitz February 15 Early 2022"]
[White "Cherniaiev, Tykhon"]
[Black "Siva Mahadevan"]
[WhiteFideId "14182360"]
[BlackFideId "25043153"]
[WhiteElo "2289"]
[BlackElo "2203"]
[Result "0-1"]
[Round "11"]
[TimeControl "180+1"]
[Date "2022.02.15"]
[WhiteClock "0:00:06"]
[BlackClock "0:01:26"]

1. Nf3 {[%clk 0:03:00]}  Nf6 {[%clk 0:02:59]} 2. c4 {[%clk 0:03:00]}  g6 {[%clk 0:03:00]} 3. b3 {[%clk 0:03:00]}  Bg7 {[%clk 0:03:01]} 4. Bb2 {[%clk 0:03:01]}  O-O {[%clk 0:03:02]} 5. g3 {[%clk 0:03:02]}  d6 {[%clk 0:03:02]} 6. d4 {[%clk 0:03:02]}  e5 {[%clk 0:03:02]} 7. dxe5 {[%clk 0:02:59]}  Nfd7 {[%clk 0:03:03]} 8. Bg2 {[%clk 0:02:59]}  Nc6 {[%clk 0:03:02]} 9. O-O {[%clk 0:02:59]}  dxe5 {[%clk 0:03:02]} 10. Nc3 {[%clk 0:02:58]}  e4 {[%clk 0:03:01]} 11. Nd2 {[%clk 0:02:56]}  f5 {[%clk 0:03:01]} 12. e3 {[%clk 0:02:56]}  Nde5 {[%clk 0:03:01]} 13. Nd5 {[%clk 0:02:52]}  Nf3+ {[%clk 0:02:58]} 14. Bxf3 {[%clk 0:02:51]}  Bxb2 {[%clk 0:02:58]} 15. Rb1 {[%clk 0:02:52]}  Bg7 {[%clk 0:02:57]} 16. Bg2 {[%clk 0:02:51]}  Ne5 {[%clk 0:02:57]} 17. f3 {[%clk 0:02:40]}  c6 {[%clk 0:02:57]} 18. Nf4 {[%clk 0:02:39]}  exf3 {[%clk 0:02:56]} 19. Nxf3 {[%clk 0:02:39]}  Ng4 {[%clk 0:02:57]} 20. Qxd8 {[%clk 0:02:37]}  Rxd8 {[%clk 0:02:57]} 21. Rfd1 {[%clk 0:02:38]}  Re8 {[%clk 0:02:51]} 22. Rd3 {[%clk 0:02:04]}  Be6 {[%clk 0:02:39]} 23. h3 {[%clk 0:01:57]}  Nf6 {[%clk 0:02:37]} 24. Nxe6 {[%clk 0:01:34]}  Rxe6 {[%clk 0:02:38]} 25. Rbd1 {[%clk 0:01:34]}  Rae8 {[%clk 0:02:37]} 26. Rd8 {[%clk 0:00:36]}  Rxe3 {[%clk 0:02:34]} 27. Rxe8+ {[%clk 0:00:36]}  Rxe8 {[%clk 0:02:34]} 28. Re1 {[%clk 0:00:37]}  Rxe1+ {[%clk 0:02:23]} 29. Nxe1 {[%clk 0:00:38]}  Kf7 {[%clk 0:02:23]} 30. Nd3 {[%clk 0:00:37]}  Bf8 {[%clk 0:02:22]} 31. Kf2 {[%clk 0:00:36]}  Bd6 {[%clk 0:02:21]} 32. c5 {[%clk 0:00:31]}  Bc7 {[%clk 0:02:22]} 33. b4 {[%clk 0:00:31]}  Ne4+ {[%clk 0:02:21]} 34. Bxe4 {[%clk 0:00:25]}  fxe4 {[%clk 0:02:22]} 35. Nc1 {[%clk 0:00:22]}  Ke6 {[%clk 0:02:22]} 36. Ke3 {[%clk 0:00:22]}  Kd5 {[%clk 0:02:21]} 37. Ne2 {[%clk 0:00:22]}  Be5 {[%clk 0:02:20]} 38. a3 {[%clk 0:00:20]}  g5 {[%clk 0:02:19]} 39. a4 {[%clk 0:00:16]}  h6 {[%clk 0:02:18]} 40. h4 {[%clk 0:00:15]}  Bb2 {[%clk 0:02:05]} 41. hxg5 {[%clk 0:00:09]}  hxg5 {[%clk 0:02:06]} 42. Kd2 {[%clk 0:00:08]}  Bd4 {[%clk 0:01:52]} 43. g4 {[%clk 0:00:08]}  Bb2 {[%clk 0:01:49]} 44. Ke3 {[%clk 0:00:08]}  Ba3 {[%clk 0:01:50]} 45. Nc3+ {[%clk 0:00:07]}  Ke5 {[%clk 0:01:48]} 46. Nxe4 {[%clk 0:00:08]}  Bxb4 {[%clk 0:01:47]} 47. Nxg5 {[%clk 0:00:08]}  Bxc5+ {[%clk 0:01:35]} 48. Kd3 {[%clk 0:00:08]}  b5 {[%clk 0:01:33]} 49. axb5 {[%clk 0:00:08]}  cxb5 {[%clk 0:01:34]} 50. Ne4 {[%clk 0:00:08]}  Bd4 {[%clk 0:01:31]} 51. Nd2 {[%clk 0:00:07]}  Kd5 {[%clk 0:01:31]} 52. Nb3 {[%clk 0:00:06]}  Bf6 {[%clk 0:01:29]} 53. Kc2 {[%clk 0:00:04]}  b4 {[%clk 0:01:28]} 54. Kd3 {[%clk 0:00:04]}  Bd8 {[%clk 0:01:27]} 55. Kc2 {[%clk 0:00:02]}  a5 {[%clk 0:01:28]} 56. Kd3 {[%clk 0:00:02]}  a4 {[%clk 0:01:28]} 57. Nd2 {[%clk 0:00:03]}  Bf6 {[%clk 0:01:25]} 58. Kc2 {[%clk 0:00:02]}  Bc3 {[%clk 0:01:23]} 59. Nb1 {[%clk 0:00:03]}  Bd4 {[%clk 0:01:23]} 60. Nd2 {[%clk 0:00:03]}  Be3 {[%clk 0:01:23]} 61. Nf1 {[%clk 0:00:02]}  Bf4 {[%clk 0:01:23]} 62. Kd3 {[%clk 0:00:02]}  a3 {[%clk 0:01:23]} 63. Nd2 {[%clk 0:00:01]}  Bxd2 {[%clk 0:01:22]} 64. Kxd2 {[%clk 0:00:02]}  a2 {[%clk 0:01:23]} 65. g5 {[%clk 0:00:03]}  a1=Q {[%clk 0:01:23]} 66. g6 {[%clk 0:00:04]}  Qg7 {[%clk 0:01:24]} 67. Kc2 {[%clk 0:00:04]}  Qxg6+ {[%clk 0:01:24]} 68. Kb2 {[%clk 0:00:05]}  Kc4 {[%clk 0:01:24]} 69. Ka1 {[%clk 0:00:05]}  Qg2 {[%clk 0:01:25]} 70. Kb1 {[%clk 0:00:05]}  Kc3 {[%clk 0:01:25]} 71. Ka1 {[%clk 0:00:06]}  Qb2# {[%clk 0:01:26]} 0-1


[Site "https://www.chess.com"]

[Event "Titled Tuesday Blitz February 15 Early 2022"]
[White "Chernomordik, Pavel"]
[Black "Samaganova, Aleksandra"]
[WhiteFideId "2804530"]
[BlackFideId "13800221"]
[WhiteElo "2249"]
[BlackElo "1859"]
[Result "1-0"]
[Round "11"]
[TimeControl "180+1"]
[Date "2022.02.15"]
[WhiteClock "0:01:07"]
[BlackClock "0:00:02"]

1. e4 {[%clk 0:03:00]}  c5 {[%clk 0:02:59]} 2. Nc3 {[%clk 0:03:00]}  e6 {[%clk 0:02:59]} 3. f4 {[%clk 0:02:59]}  a6 {[%clk 0:02:57]} 4. g3 {[%clk 0:02:59]}  b5 {[%clk 0:02:57]} 5. Bg2 {[%clk 0:02:58]}  Bb7 {[%clk 0:02:57]} 6. Qe2 {[%clk 0:02:58]}  Qc7 {[%clk 0:02:49]} 7. d3 {[%clk 0:02:55]}  Nf6 {[%clk 0:02:48]} 8. e5 {[%clk 0:02:48]}  Nd5 {[%clk 0:02:41]} 9. Ne4 {[%clk 0:02:44]}  Nb6 {[%clk 0:02:29]} 10. Nf3 {[%clk 0:02:41]}  Be7 {[%clk 0:02:22]} 11. O-O {[%clk 0:02:40]}  O-O {[%clk 0:02:21]} 12. g4 {[%clk 0:02:38]}  f5 {[%clk 0:01:54]} 13. exf6 {[%clk 0:02:34]}  Bxf6 {[%clk 0:01:53]} 14. Nxf6+ {[%clk 0:02:22]}  Rxf6 {[%clk 0:01:53]} 15. Bd2 {[%clk 0:02:13]}  Nc6 {[%clk 0:01:36]} 16. Rae1 {[%clk 0:02:07]}  Raf8 {[%clk 0:01:32]} 17. c3 {[%clk 0:02:01]}  Nd5 {[%clk 0:01:24]} 18. f5 {[%clk 0:01:56]}  Nce7 {[%clk 0:01:13]} 19. Bg5 {[%clk 0:01:47]}  Nf4 {[%clk 0:00:52]} 20. Bxf4 {[%clk 0:01:40]}  Qxf4 {[%clk 0:00:52]} 21. Ne5 {[%clk 0:01:39]}  Qg5 {[%clk 0:00:28]} 22. Bxb7 {[%clk 0:01:32]}  Rxf5 {[%clk 0:00:24]} 23. Nxd7 {[%clk 0:01:21]}  Rxf1+ {[%clk 0:00:18]} 24. Rxf1 {[%clk 0:01:21]}  Rxf1+ {[%clk 0:00:18]} 25. Kxf1 {[%clk 0:01:20]}  Qh6 {[%clk 0:00:05]} 26. Nxc5 {[%clk 0:01:15]}  Qh3+ {[%clk 0:00:03]} 27. Bg2 {[%clk 0:01:09]}  Qh6 {[%clk 0:00:02]} 28. Qxe6+ {[%clk 0:01:07]}  Qxe6 {[%clk 0:00:02]} 29. Nxe6 {[%clk 0:01:07]} 1-0


[Site "https://www.chess.com"]